fUST/lending_fUST_20241218
["ID","MTS","AMOUNT","RATE_DAILY","PERIOD"]
[345805106,1734486637672,-500.0,0.00024657,6]
[345805108,1734486637683,-500.0,0.00024657,6]
[345805109,1734486637693,-557.78246746,0.00024657,6]
[345805112,1734486637705,-707.33,0.00024657,6]
[345805113,1734486637715,-500.0,0.00024657,6]
[345805116,1734486637729,-197.62874935,0.00024657,6]
[345805118,1734486637739,-5620.5,0.00024657,6]
[345805120,1734486637749,-500.0,0.00024657,6]
[345805122,1734486637760,-500.0,0.00024657,6]
[345805124,1734486637771,-500.0,0.00024657,6]
[345805126,1734486637782,-500.0,0.00024657,6]
[345805128,1734486637800,-500.0,0.00024657,6]
[345805130,1734486637811,-500.0,0.00024657,6]
[345805132,1734486637822,-507.99,0.00024657,6]
[345805134,1734486637833,-500.0,0.00024657,6]
[345805136,1734486637844,-168.02235806,0.00024657,6]
[345805138,1734486637855,-500.0,0.00024657,6]
[345805140,1734486637866,-500.0,0.00024657,6]
[345805142,1734486637877,-732.26,0.00024657,6]
[345805144,1734486637887,-310.86300568,0.00024657,6]
[345805146,1734486637897,-500.0,0.00024657,6]
[345805148,1734486637909,-815.11,0.00024657,6]
[345805150,1734486637919,-500.0,0.00024657,6]
[345805152,1734486637928,-5687.29,0.00024657,6]
[345805154,1734486637938,-569.6,0.00024657,6]
[345805156,1734486637948,-500.0,0.00024657,6]
[345805158,1734486637957,-522.92,0.00024657,6]
[345805160,1734486637968,-500.0,0.00024657,6]
[345805162,1734486637977,-502.64208422,0.00024657,6]
[345805164,1734486637986,-500.0,0.00024657,6]
[345805166,1734486637996,-500.0,0.00024657,6]
[345805168,1734486638006,-500.0,0.00024657,6]
[345805170,1734486638015,-74633.28,0.00024657,6]
[345805172,1734486638024,-500.0,0.00024657,6]
[345805174,1734486638034,-516.11,0.00024657,6]
[345805176,1734486638044,-559.49,0.00024657,6]
[345805178,1734486638054,-500.0,0.00024657,6]
[345805180,1734486638064,-586.38,0.00024657,6]
[345805182,1734486638074,-500.0,0.00024657,6]
[345805184,1734486638084,-500.0,0.00024657,6]
[345805186,1734486638093,-500.0,0.00024657,6]
[345805188,1734486638103,-4602.25,0.00024657,6]
[345805190,1734486638113,-500.0,0.00024657,6]
[345805192,1734486638123,-500.0,0.00024657,6]
[345805194,1734486638133,-500.0,0.00024657,6]
[345805196,1734486638143,-584.55,0.00024657,6]
[345805198,1734486638153,-500.0,0.00024657,6]
[345805200,1734486638162,-500.0,0.00024657,6]
[345805202,1734486638172,-508.37207052,0.00024657,6]
[345805204,1734486638182,-500.0,0.00024657,6]
[345805206,1734486638193,-410.35436111,0.00024657,6]
[345805208,1734486638204,-500.0,0.00024657,6]
[345805211,1734486638214,-500.0,0.00024657,6]
[345805213,1734486638226,-864.25,0.00024657,6]
[345805215,1734486638236,-500.0,0.00024657,6]
[345805218,1734486638246,-500.0,0.00024657,6]
[345805220,1734486638256,-500.0,0.00024657,6]
[345805223,1734486638265,-532.26,0.00024657,6]
[345805226,1734486638275,-500.0,0.00024657,6]
[345805229,1734486638285,-500.0,0.00024657,6]
[345805232,1734486638306,-542.58,0.00024657,6]
[345805235,1734486638316,-500.0,0.00024657,6]
[345805237,1734486638326,-500.0,0.00024657,6]
[345805239,1734486638336,-500.0,0.00024657,6]
[345805241,1734486638345,-2194.9,0.00024657,6]
[345805243,1734486638355,-500.0,0.00024657,6]
[345805245,1734486638365,-1055.97,0.00024657,6]
[345805247,1734486638375,-500.0,0.00024657,6]
[345805249,1734486638384,-500.0,0.00024657,6]
[345805251,1734486638394,-805.36,0.00024657,6]
[345805253,1734486638404,-500.0,0.00024657,6]
[345805255,1734486638413,-500.0,0.00024657,6]
[345805257,1734486638424,-698.73,0.00024657,6]
[345805259,1734486638433,-500.0,0.00024657,6]
[345805261,1734486638442,-500.0,0.00024657,6]
[345805263,1734486638452,-2227.21,0.00024657,6]
[345805265,1734486638461,-500.0,0.00024657,6]
[345805267,1734486638471,-500.0,0.00024657,6]
[345805269,1734486638482,-500.0,0.00024657,6]
[345805271,1734486638492,-500.0,0.00024657,6]
[345805273,1734486638503,-500.0,0.00024657,6]
[345805275,1734486638512,-744.02,0.00024657,6]
[345805277,1734486638522,-279.83474621,0.00024657,6]
[345805279,1734486638532,-7861.2,0.00024657,6]
[345805281,1734486638546,-3606.23,0.00024657,6]
[345805283,1734486638555,-9639.79,0.00024657,6]
[345805285,1734486638565,-944.43,0.00024657,6]
[345805287,1734486638575,-2306.99,0.00024657,6]
[345805289,1734486638585,-504.34796979,0.00024657,6]
[345805291,1734486638595,-233.58591737,0.00024657,6]
[345805293,1734486638605,-500.0,0.00024657,6]
[345805295,1734486638616,-500.0,0.00024657,6]
[345805297,1734486638626,-500.0,0.00024657,6]
[345805299,1734486638636,-500.0,0.00024657,6]
[345805301,1734486638646,-500.0,0.00024657,6]
[345805303,1734486638656,-500.0,0.00024657,6]
[345805305,1734486638666,-5359.18,0.00024657,6]
[345805307,1734486638675,-1109.78,0.00024657,6]
[345805309,1734486638685,-500.0,0.00024657,6]
[345805311,1734486638695,-539.5491158,0.00024657,6]
[345805313,1734486638704,-500.0,0.00024657,6]
[345805315,1734486638714,-500.0,0.00024657,6]
[345805317,1734486638723,-380.0,0.00024658,2]
[345805319,1734486638736,-500.0,0.00024658,2]
[345805321,1734486638745,-500.0,0.00024658,2]
[345805323,1734486638755,-500.0,0.00024658,2]
[345805325,1734486638765,-500.0,0.00024658,2]
[345805327,1734486638778,-500.0,0.00024658,2]
[345805329,1734486638788,-500.0,0.00024658,2]
[345805331,1734486638799,-340.17126238,0.00024658,2]
[345805333,1734486638811,-502.28648628,0.00024673,2]
[345805335,1734486638820,-505.83720511,0.00024673,2]
[345805337,1734486638830,-501.80177638,0.00024673,2]
[345805339,1734486638839,-502.92457265,0.00024673,2]
[345805341,1734486638849,-203.72112824,0.00024673,2]
[345805343,1734486638858,-529.61665069,0.00024673,2]
[345805345,1734486638868,-397.63560242,0.00024673,2]
[345805347,1734486638878,-501.17551176,0.00024673,2]
[345805349,1734486638887,-500.7757561,0.00024673,2]
[345805351,1734486638896,-160.25638063,0.00024673,2]
[345805352,1734486638905,-500.0,0.00024673,2]
[345805355,1734486638916,-500.75425509,0.00024673,2]
[345805357,1734486638926,-262.87519386,0.00024673,2]
[345805359,1734486638936,-484.63771346,0.00024673,2]
[345805361,1734486638945,-500.0,0.00024673,2]
[345805363,1734486638955,-502.00382719,0.00024673,2]
[345805365,1734486638964,-178.446929,0.00024673,2]
[345805367,1734486638973,-500.0,0.00024673,2]
[345805369,1734486638983,-500.0,0.00024673,2]
[345805371,1734486638993,-501.40713868,0.00024673,2]
[345805373,1734486639002,-219.27423173,0.00024673,2]
[345805375,1734486639012,-151.0,0.00024699,6]
[345805377,1734486639022,-2257.69,0.000247,2]
[345805379,1734486639031,-487.23,0.000248,7]
[345805381,1734486639045,-158.67368927,0.00024897,2]
[345805383,1734486639055,-165.23034211,0.0002493,2]
[345805385,1734486639065,-500.0,0.00024931,6]
[345805387,1734486639075,-500.0,0.00024931,6]
[345805389,1734486639085,-500.0,0.00024931,6]
[345805391,1734486639094,-500.0,0.00024931,6]
[345805393,1734486639104,-500.0,0.00024931,6]
[345805395,1734486639113,-502.0731442,0.00024931,6]
[345805397,1734486639123,-500.0,0.00024931,6]
[345805399,1734486639133,-556.42695883,0.00024931,6]
[345805400,1734486639142,-500.0,0.00024931,6]
[345805401,1734486639151,-497.33258162,0.00024931,6]
[345805402,1734486639161,-500.0,0.00024931,6]
[345805403,1734486639171,-605.31928394,0.00024931,6]
[345805404,1734486639180,-502.47835283,0.00024931,6]
[345805405,1734486639190,-502.5433661,0.00024931,6]
[345805406,1734486639200,-502.52456635,0.00024931,6]
[345805407,1734486639209,-501.93994301,0.00024931,6]
[345805408,1734486639219,-490.80685577,0.00024931,6]
[345805409,1734486639229,-500.0,0.00024931,6]
[345805410,1734486639238,-515.88585907,0.00024931,6]
[345805411,1734486639247,-500.0,0.00024931,6]
[345805412,1734486639257,-500.0,0.00024931,6]
[345805413,1734486639266,-500.0,0.00024931,6]
[345805414,1734486639276,-500.0,0.00024931,6]
[345805415,1734486639286,-500.0,0.00024931,6]
[345805416,1734486639300,-509.42239809,0.00024931,6]
[345805417,1734486639310,-500.0,0.00024931,6]
[345805418,1734486639319,-500.0,0.00024931,6]
[345805419,1734486639330,-500.0,0.00024931,6]
[345805420,1734486639341,-500.0,0.00024931,6]
[345805421,1734486639351,-500.0,0.00024931,6]
[345805422,1734486639362,-500.0,0.00024931,6]
[345805423,1734486639373,-500.0,0.00024931,6]
[345805424,1734486639383,-229.19026129,0.00024931,6]
[345805425,1734486639394,-500.0,0.00024931,6]
[345805426,1734486639404,-510.30868792,0.00024931,6]
[345805427,1734486639415,-500.0,0.00024931,6]
[345805428,1734486639425,-500.0,0.00024931,6]
[345805429,1734486639436,-500.0,0.00024931,6]
[345805430,1734486639445,-500.0,0.00024931,6]
[345805431,1734486639454,-500.0,0.00024931,6]
[345805432,1734486639464,-500.0,0.00024931,6]
[345805433,1734486639474,-500.0,0.00024931,6]
[345805434,1734486639483,-500.0,0.00024931,6]
[345805435,1734486639493,-500.0,0.00024931,6]
[345805436,1734486639502,-500.0,0.00024931,6]
[345805437,1734486639511,-500.0,0.00024931,6]
[345805438,1734486639520,-500.0,0.00024931,6]
[345805439,1734486639530,-500.0,0.00024931,6]
[345805440,1734486639545,-184.00163878,0.00024931,6]
[345805442,1734486639556,-500.0,0.00024931,6]
[345805444,1734486639566,-272.64259079,0.00024931,6]
[345805446,1734486639576,-500.0,0.00024931,6]
[345805448,1734486639585,-210.66307421,0.00024931,6]
[345805450,1734486639595,-500.0,0.00024931,6]
[345805452,1734486639604,-156.40453414,0.00024931,6]
[345805454,1734486639613,-500.0,0.00024931,6]
[345805455,1734486639623,-500.0,0.00024931,6]
[345805457,1734486639633,-500.0,0.00024931,6]
[345805459,1734486639643,-500.0,0.00024931,6]
[345805461,1734486639653,-396.66329029,0.00024931,6]
[345805462,1734486639662,-500.0,0.00024931,6]
[345805464,1734486639671,-423.7758286,0.00024931,6]
[345805465,1734486639680,-500.0,0.00024931,6]
[345805466,1734486639689,-500.0,0.00024931,6]
[345805467,1734486639698,-415.69982319,0.00024931,6]
[345805468,1734486639707,-500.0,0.00024931,6]
[345805469,1734486639716,-500.0,0.00024931,6]
[345805470,1734486639731,-511.83180362,0.00024931,6]
[345805471,1734486639745,-500.0,0.00024931,6]
[345805472,1734486639758,-2084.16,0.00024931,6]
[345805473,1734486639770,-500.0,0.00024931,6]
[345805474,1734486639783,-633.42,0.00024931,6]
[345805475,1734486639798,-500.0,0.00024931,6]
[345805476,1734486639811,-500.0,0.00024931,6]
[345805477,1734486639822,-543.99,0.00024931,6]
[345805478,1734486639834,-500.0,0.00024931,6]
[345805479,1734486639846,-500.0,0.00024931,6]
[345805480,1734486639858,-520.08,0.00024931,6]
[345805481,1734486639870,-500.0,0.00024931,6]
[345805482,1734486639883,-500.0,0.00024931,6]
[345805483,1734486639896,-181.40010495,0.00024931,6]
[345805484,1734486639907,-500.0,0.00024931,6]
[345805485,1734486639920,-500.0,0.00024931,6]
[345805486,1734486639932,-281.45871032,0.00024931,6]
[345805487,1734486639945,-500.0,0.00024931,6]
[345805488,1734486639956,-500.0,0.00024931,6]
[345805489,1734486639968,-500.0,0.00024931,6]
[345805490,1734486639979,-500.0,0.00024931,6]
[345805491,1734486639990,-500.0,0.00024931,6]
[345805492,1734486640001,-500.0,0.00024931,6]
[345805494,1734486640012,-507.90134517,0.00024931,6]
[345805496,1734486640023,-500.0,0.00024931,6]
[345805498,1734486640036,-500.0,0.00024931,6]
[345805500,1734486640051,-500.0,0.00024931,6]
[345805502,1734486640062,-500.0,0.00024931,6]
[345805503,1734486640074,-717.81,0.00024931,6]
[345805504,1734486640084,-753.06,0.00024931,6]
[345805505,1734486640095,-749.45,0.00024931,6]
[345805506,1734486640105,-500.0,0.00024931,6]
[345805507,1734486640116,-710.35,0.00024931,6]
[345805508,1734486640128,-500.0,0.00024931,6]
[345805509,1734486640139,-94.92517586,0.00024931,6]
[345805510,1734486640165,-405.07482414,0.00024931,6]
[345805511,1734486640177,-500.0,0.00024931,6]
[345805512,1734486640188,-266.66647113,0.00024931,6]
[345805513,1734486640200,-500.0,0.00024931,6]
[345805514,1734486640211,-353.44102742,0.00024931,6]
[345805515,1734486640223,-883.67,0.00024931,6]
[345805517,1734486640235,-168.0,0.00024931,6]
[345805522,1734486640247,-503.47252665,0.00024931,6]
[345805526,1734486640259,-217.3101025,0.00024931,6]
[345805528,1734486640270,-500.0,0.00024931,6]
[345805530,1734486640282,-500.0,0.00024931,6]
[345805531,1734486640295,-1093.35,0.00024931,6]
[345805532,1734486640305,-500.0,0.00024931,6]
[345805533,1734486640315,-500.0,0.00024931,6]
[345805534,1734486640325,-601.9,0.00024931,6]
[345805535,1734486640335,-500.0,0.00024931,6]
[345805536,1734486640346,-500.0,0.00024931,6]
[345805537,1734486640357,-500.0,0.00024931,6]
[345805538,1734486640369,-500.0,0.00024931,6]
[345805539,1734486640382,-483.58867683,0.00024931,6]
[345805540,1734486640394,-500.0,0.00024931,6]
[345805541,1734486640405,-984.37,0.00024931,2]
[345805543,1734486640415,-500.0,0.00024931,6]
[345805545,1734486640425,-500.0,0.00024931,6]
[345805546,1734486640436,-500.0,0.00024931,6]
[345805548,1734486640447,-500.0,0.00024931,6]
[345805550,1734486640460,-500.0,0.00024931,6]
[345805552,1734486640472,-500.0,0.00024931,6]
[345805553,1734486640486,-500.0,0.00024931,6]
[345805554,1734486640499,-500.0,0.00024931,6]
[345805555,1734486640509,-833.92,0.00024931,6]
[345805556,1734486640520,-500.0,0.00024931,6]
[345805557,1734486640531,-778.27,0.00024931,6]
[345805558,1734486640544,-1467.47,0.00024931,6]
[345805559,1734486640554,-500.0,0.00024931,6]
[345805560,1734486640566,-500.0,0.00024931,6]
[345805561,1734486640580,-500.0,0.00024931,6]
[345805562,1734486640591,-500.0,0.00024931,6]
[345805563,1734486640602,-500.0,0.00024931,6]
[345805564,1734486640613,-574.38,0.00024931,6]
[345805565,1734486640624,-506.68397903,0.00024931,6]
[345805566,1734486640635,-795.09,0.00024931,6]
[345805568,1734486640646,-199.00997106,0.00024931,6]
[345805569,1734486640657,-500.0,0.00024931,6]
[345805571,1734486640668,-500.0,0.00024931,6]
[345805573,1734486640679,-500.0,0.00024931,6]
[345805575,1734486640690,-500.0,0.00024931,6]
[345805576,1734486640701,-500.0,0.00024931,6]
[345805577,1734486640712,-613.52,0.00024931,6]
[345805578,1734486640724,-500.0,0.00024931,6]
[345805579,1734486640736,-504.85296573,0.00024931,6]
[345805580,1734486640748,-500.0,0.00024931,6]
[345805581,1734486640759,-1874.07,0.00024931,6]
[345805582,1734486640771,-2968.18,0.00024931,6]
[345805583,1734486640784,-500.0,0.00024931,6]
[345805584,1734486640802,-500.0,0.00024931,6]
[345805585,1734486640814,-500.0,0.00024931,6]
[345805586,1734486640825,-500.0,0.00024931,6]
[345805587,1734486640836,-569.48,0.00024931,6]
[345805588,1734486640848,-622.83,0.00024931,6]
[345805589,1734486640860,-500.0,0.00024931,6]
[345805590,1734486640871,-500.0,0.00024931,6]
[345805591,1734486640882,-718.97,0.00024931,6]
[345805592,1734486640893,-500.0,0.00024931,6]
[345805594,1734486640904,-1229.96,0.00024931,6]
[345805596,1734486640915,-500.0,0.00024931,6]
[345805597,1734486640925,-500.0,0.00024931,6]
[345805598,1734486640936,-500.0,0.00024931,6]
[345805599,1734486640947,-500.0,0.00024931,6]
[345805600,1734486640958,-500.0,0.00024931,6]
[345805601,1734486640968,-3019.32,0.00024931,6]
[345805602,1734486640979,-3382.04,0.00024931,2]
[345805603,1734486640990,-500.0,0.00024931,6]
[345805604,1734486641000,-500.0,0.00024931,6]
[345805605,1734486641010,-1116.13,0.00024931,6]
[345805606,1734486641020,-500.0,0.00024931,6]
[345805607,1734486641031,-500.0,0.00024931,6]
[345805608,1734486641043,-500.0,0.00024931,6]
[345805609,1734486641054,-500.0,0.00024931,6]
[345805610,1734486641066,-500.0,0.00024931,6]
[345805611,1734486641077,-500.0,0.00024931,6]
[345805612,1734486641088,-500.0,0.00024931,2]
[345805613,1734486641099,-500.0,0.00024931,6]
[345805614,1734486641113,-1267.45,0.00024931,6]
[345805615,1734486641131,-500.0,0.00024931,6]
[345805616,1734486641142,-500.0,0.00024931,6]
[345805617,1734486641153,-500.0,0.00024931,6]
[345805618,1734486641164,-500.0,0.00024931,6]
[345805619,1734486641175,-628.02,0.00024931,6]
[345805620,1734486641185,-500.0,0.00024931,6]
[345805621,1734486641195,-500.0,0.00024931,6]
[345805622,1734486641206,-500.0,0.00024931,6]
[345805623,1734486641223,-500.0,0.00024931,6]
[345805624,1734486641235,-500.0,0.00024931,6]
[345805625,1734486641246,-500.0,0.00024931,6]
[345805626,1734486641257,-500.0,0.00024931,6]
[345805627,1734486641269,-500.0,0.00024931,6]
[345805628,1734486641280,-1509.38,0.00024931,6]
[345805629,1734486641296,-500.0,0.00024931,6]
[345805630,1734486641309,-500.0,0.00024931,6]
[345805631,1734486641321,-500.0,0.00024931,6]
[345805632,1734486641331,-500.0,0.00024931,6]
[345805633,1734486641342,-501.60927253,0.00024931,6]
[345805634,1734486641353,-390.98147543,0.00024931,6]
[345805635,1734486641364,-500.0,0.00024931,6]
[345805636,1734486641375,-848.94,0.00024931,6]
[345805637,1734486641386,-500.0,0.00024931,6]
[345805638,1734486641397,-500.0,0.00024931,6]
[345805639,1734486641408,-500.0,0.00024931,6]
[345805640,1734486641419,-502.203078,0.00024931,6]
[345805641,1734486641430,-500.0,0.00024931,6]
[345805642,1734486641442,-500.0,0.00024931,6]
[345805643,1734486641453,-500.0,0.00024931,6]
[345805644,1734486641464,-500.0,0.00024931,6]
[345805645,1734486641474,-500.0,0.00024931,6]
[345805646,1734486641485,-334.14208233,0.00024931,6]
[345805647,1734486641876,-151.90535729,0.00024673,2]
[345805648,1734486641887,-165.85791767,0.00024931,6]
[345805649,1734486641896,-501.73291918,0.00024931,6]
[345805650,1734486641906,-500.0,0.00024931,6]
[345805651,1734486641915,-500.0,0.00024931,6]
[345805652,1734486641925,-500.0,0.00024931,6]
[345805653,1734486641934,-500.0,0.00024931,6]
[345805654,1734486641944,-242.65348511,0.00024931,6]
[345805655,1734486641956,-257.34651489,0.00024931,6]
[345805656,1734486641965,-7376.40930229,0.00024931,6]
[345805657,1734486641976,-75.59069771,0.00024931,6]
[345805658,1734486641986,-1033.57,0.00024931,6]
[345805659,1734486641995,-500.0,0.00024931,6]
[345805660,1734486642005,-500.0,0.00024931,6]
[345805661,1734486642015,-500.0,0.00024931,6]
[345805662,1734486642024,-500.0,0.00024931,6]
[345805663,1734486642033,-5579.29,0.00024931,6]
[345805664,1734486642045,-1049.04,0.00024931,6]
[345805665,1734486642055,-500.0,0.00024931,6]
[345805666,1734486642064,-500.0,0.00024931,6]
[345805667,1734486642074,-566.20772994,0.00024931,6]
[345805668,1734486642083,-779.8,0.00024931,6]
[345805669,1734486642092,-363.04157242,0.00024931,6]
[345805670,1734486642104,-136.95842758,0.00024931,6]
[345805671,1734486642114,-500.0,0.00024931,6]
[345805672,1734486642123,-818.04,0.00024931,2]
[345805673,1734486642135,-200.0,0.00024931,6]
[345805674,1734486642144,-500.0,0.00024931,6]
[345805675,1734486642154,-214.5833896,0.00024931,6]
[345805676,1734486642164,-5882.57,0.00024931,6]
[345805677,1734486642173,-350.17652854,0.00024931,6]
[345805678,1734486642549,-149.82347146,0.00024931,6]
[345805679,1734486642559,-534.46921671,0.00024931,6]
[345805680,1734486642571,-3910.93078329,0.00024931,6]
[345805681,1734486642581,-531.32426924,0.00024931,6]
[345805682,1734486642590,-780.14,0.00024931,6]
[345805683,1734486642600,-500.0,0.00024931,6]
[345805684,1734486642609,-500.0,0.00024931,6]
[345805685,1734486642618,-900.4,0.00024931,6]
[345805686,1734486642628,-500.0,0.00024931,6]
[345805687,1734486642637,-500.0,0.00024931,6]
[345805688,1734486642646,-500.0,0.00024931,6]
[345805689,1734486642656,-504.13199127,0.00024931,6]
[345805690,1734486642665,-229.07297922,0.00024931,6]
[345805697,1734486643111,-518.58702078,0.00024931,6]
[345805698,1734486643121,-500.0,0.00024931,6]
[345805699,1734486643131,-27.15569868,0.00024931,6]
[345805724,1734486643817,-189.442,0.00021653,2]
[345805725,1734486643828,-611.94,0.00024657,6]
[345805726,1734486643838,-500.0,0.00024657,6]
[345805727,1734486643849,-132.125,0.00024931,6]
[345805764,1734486646660,-212.1687899,0.00024099,2]
[345805765,1734486646670,-500.0,0.00024657,6]
[345805766,1734486646680,-500.0,0.00024673,2]
[345805767,1734486646690,-30.26724055,0.00024931,6]
[345805768,1734486646700,-500.0,0.00024931,6]
[345805769,1734486646710,-500.0,0.00024931,6]
[345805770,1734486646719,-638.27,0.00024931,6]
[345805771,1734486646733,-984.29396964,0.00024931,6]
[345805772,1734486646744,-258.87242121,0.00024931,6]
[345805773,1734486648159,4064.98462391,0.0002557,120]
[345805779,1734486779162,-4829.66095756,0.00019506,2]
[345805783,1734487384942,4055.64613388,0.00025569,120]
[345805784,1734487391104,223.680866,0.00013973,2]
[345805869,1734487837283,-744.680002,0.00020347,2]
[345805872,1734487837296,-3895.60924001,0.00020347,2]
[345805873,1734487837306,-223.680866,0.00020447,2]
[345805874,1734487837316,-2634.47002655,0.000219,2]
[345805875,1734487837327,-297.073833,0.00022,2]
[345805876,1734487837337,-156.15459305,0.00022,2]
[345805877,1734487837348,-194.7094779,0.00022536,2]
[345805878,1734487837359,-352.05770831,0.00022586,8]
[345805879,1734487837370,-167.601979,0.00022901,2]
[345805880,1734487837380,-300.0,0.00023072,2]
[345805881,1734487837390,-300.0,0.00023072,2]
[345805882,1734487837400,-684.13212678,0.00023073,2]
[345805883,1734487837413,-24215.86787322,0.00023073,2]
[345805884,1734487837423,-927.1634781,0.00023375,2]
[345805885,1734487837434,-293.312616,0.00023475,2]
[345805886,1734487837444,-927.16347807,0.00023805,2]
[345805887,1734487837453,-154.5938546,0.00024,5]
[345805888,1734487837464,-172.9709892,0.00024027,2]
[345805889,1734487837474,-215.0,0.0002426,13]
[345805890,1734487837484,-212.2918136,0.00024438,2]
[345805891,1734487837494,-315.7249137,0.00024438,2]
[345805892,1734487837504,-213.8615731,0.00024438,2]
[345805893,1734487837516,-457.7139909,0.00024438,2]
[345805894,1734487837526,-153.1872232,0.00024438,2]
[345805895,1734487837536,-213.8615731,0.00024438,2]
[345805896,1734487837546,-153.1872232,0.00024438,2]
[345805897,1734487837556,-213.8615731,0.00024438,2]
[345805898,1734487837565,-153.1872232,0.00024438,2]
[345805899,1734487837575,-213.8615731,0.00024438,2]
[345805900,1734487837585,-153.1872232,0.00024438,2]
[345805901,1734487837595,-213.8615731,0.00024438,2]
[345805902,1734487837604,-153.1872232,0.00024438,2]
[345805903,1734487837614,-312.1942558,0.00024438,2]
[345805904,1734487837623,-153.1872232,0.00024438,2]
[345805905,1734487837634,-213.8615731,0.00024438,2]
[345805906,1734487837644,-153.1872232,0.00024438,2]
[345805907,1734487837654,-213.8615731,0.00024438,2]
[345805908,1734487837664,-213.8615731,0.00024438,2]
[345805909,1734487837674,-153.1872232,0.00024438,2]
[345805910,1734487837684,-519.9074708,0.00024438,2]
[345805911,1734487837694,-153.1872232,0.00024438,2]
[345805912,1734487837703,-153.1872232,0.00024438,2]
[345805913,1734487837713,-153.1872232,0.00024438,2]
[345805914,1734487837722,-153.1872232,0.00024438,2]
[345805915,1734487837732,-153.1872232,0.00024438,2]
[345805916,1734487837741,-10204.44300829,0.00024459,2]
[345805917,1734487837751,-447.402,0.0002446,2]
[345805918,1734487837763,-383.0,0.000245,11]
[345805919,1734487837773,-152.0,0.00024513,2]
[345805920,1734487837782,-666.0,0.00024557,2]
[345805921,1734487837793,-921.25993219,0.00024557,2]
[345805922,1734487837803,-1618.93511003,0.00024656,2]
[345805923,1734487837812,-4240.51,0.00024656,2]
[345805924,1734487837822,-500.0,0.00024657,6]
[345805925,1734487837832,-500.0,0.00024657,6]
[345805926,1734487837842,-500.0,0.00024657,6]
[345805927,1734487837852,-500.79499756,0.00024657,6]
[345805928,1734487837863,-500.0,0.00024657,6]
[345805929,1734487837873,-500.0,0.00024657,6]
[345805930,1734487837883,-500.0,0.00024657,6]
[345805931,1734487837893,-500.0,0.00024657,6]
[345805932,1734487837903,-500.0,0.00024657,6]
[345805933,1734487837912,-500.0,0.00024657,6]
[345805934,1734487837922,-1076.1,0.00024657,2]
[345805935,1734487837932,-500.0,0.00024657,6]
[345805936,1734487837942,-500.0,0.00024657,6]
[345805937,1734487837952,-500.0,0.00024657,6]
[345805938,1734487837961,-500.0,0.00024657,6]
[345805939,1734487837972,-500.0,0.00024657,6]
[345805940,1734487837982,-421.42617114,0.00024657,6]
[345805941,1734487837992,-500.0,0.00024657,6]
[345805942,1734487838001,-414.35607675,0.00024657,6]
[345805943,1734487838013,-500.0,0.00024657,6]
[345805944,1734487838023,-500.0,0.00024657,6]
[345805945,1734487838033,-500.0,0.00024657,6]
[345805946,1734487838043,-687.0,0.00024657,6]
[345805947,1734487838053,-500.0,0.00024657,6]
[345805948,1734487838063,-500.0,0.00024657,6]
[345805949,1734487838073,-500.0,0.00024657,6]
[345805950,1734487838084,-551.74,0.00024657,6]
[345805951,1734487838098,-477.50714234,0.00024657,6]
[345805952,1734487838108,-306.55502662,0.00024657,6]